[Event "44th Chess Olympiad Open 2022"]
[Site "Chennai"]
[Date "2022.07.31"]
[Round "3.51"]
[White "Eichab, Charles"]
[Black "Saraci, Korab"]
[Result "0-1"]
[WhiteElo "2048"]
[BlackElo "2287"]
[Annotator "RC"]
[PlyCount "66"]
[EventDate "2022.??.??"]
[TimeControl "60"]

1. c4 {[%emt 0:00:37]} Nf6 {[%emt 0:00:13]} 2. g3 {[%emt 0:00:59]} e6 {[%emt 0:
00:00]} 3. Bg2 {[%emt 0:01:01]} d5 {[%emt 0:00:15]} 4. Nf3 {[%emt 0:00:41]} Be7
{[%emt 0:00:47]} 5. O-O {[%emt 0:05:35]} O-O {[%emt 0:00:15]} 6. d4 {[%emt 0:
00:00]} Nbd7 {[%emt 0:01:20]} 7. Nc3 {[%emt 0:02:03]} c6 {[%emt 0:00:24]} 8.
Qd3 {[%emt 0:00:57]} c5 {[%emt 0:11:51]} 9. cxd5 {[%emt 0:06:31]} exd5 {
[%emt 0:02:09]} 10. e4 {[%emt 0:03:58]} cxd4 {[%emt 0:09:45]} 11. Nxd5 {
[%emt 0:01:18]} Nxd5 {[%emt 0:08:31]} 12. exd5 {[%emt 0:00:27]} Bf6 {[%emt 0:
00:00]} 13. Nxd4 {[%emt 0:08:25]} Nc5 {[%emt 0:01:42]} 14. Qd1 {[%emt 0:01:03]}
b6 {[%emt 0:01:38]} 15. b4 {[%emt 0:13:10]} Na4 {[%emt 0:01:58]} 16. Be3 {
[%emt 0:03:34]} Bd7 {[%emt 0:16:54]} 17. Rc1 {[%emt 0:02:02]} Rc8 {[%emt 0:00:
00]} 18. Qb3 {[%emt 0:02:32]} b5 {[%emt 0:05:22]} 19. Nc6 {[%emt 0:02:51]} Rxc6
{[%emt 0:03:22]} 20. dxc6 {[%emt 0:01:12]} Be6 {[%emt 0:00:19]} 21. Qd1 {
[%emt 0:03:48]} Qe7 {[%emt 0:00:13]} 22. Bc5 {[%emt 0:06:26]} Nxc5 {[%emt 0:00:
00]} 23. Rxc5 {[%emt 0:00:25]} a6 {[%emt 0:02:43]} 24. c7 {[%emt 0:06:01]} Rc8
{[%emt 0:01:18]} 25. a3 {[%emt 0:06:27]} Rxc7 {[%emt 0:01:05]} 26. Qc1 {
[%emt 0:01:55]} Ra7 {[%emt 0:02:20]} 27. Re1 {[%emt 0:01:01]} g6 {[%emt 0:00:
00]} 28. Bh3 {[%emt 0:04:45]} Bd4 {[%emt 0:00:38]} 29. Rc6 {[%emt 0:08:27]} Qf6
{[%emt 0:01:27]} 30. Re2 {[%emt 0:00:22]} Qf3 {[%emt 0:00:25]} 31. Rexe6 {
[%emt 0:03:40]} Bxf2+ {[%emt 0:00:10]} 32. Kf1 {[%emt 0:00:24]} Bxg3+ {[%emt 0:
00:00]} 33. Kg1 {[%emt 0:00:05]} Qf2+ {[%emt 0:00:06]} 0-1

[Event "44th Chess Olympiad Open 2022"]
[Site "Chennai"]
[Date "2022.07.31"]
[Round "3.51"]
[White "Ndahangwapo, Heskiel"]
[Black "Asllani, Muhamet"]
[Result "1-0"]
[WhiteElo "1904"]
[BlackElo "2235"]
[Annotator "RC"]
[PlyCount "155"]
[EventDate "2022.??.??"]
[TimeControl "60"]

1. d4 {[%emt 0:00:46]} Nf6 {[%emt 0:00:10]} 2. c4 {[%emt 0:00:05]} d5 {[%emt 0:
00:00]} 3. g3 {[%emt 0:00:09]} dxc4 {[%emt 0:00:21]} 4. Nf3 {[%emt 0:00:17]} c6
{[%emt 0:00:37]} 5. a4 {[%emt 0:00:15]} Bf5 {[%emt 0:00:08]} 6. Bg2 {[%emt 0:
00:00]} e6 {[%emt 0:00:09]} 7. O-O {[%emt 0:00:06]} Be7 {[%emt 0:00:39]} 8.
Nbd2 {[%emt 0:00:11]} O-O {[%emt 0:00:19]} 9. Nxc4 {[%emt 0:00:32]} Nbd7 {
[%emt 0:01:05]} 10. b3 {[%emt 0:02:48]} Nd5 {[%emt 0:00:41]} 11. Bb2 {[%emt 0:
00:00]} Nb4 {[%emt 0:01:54]} 12. Nfe5 {[%emt 0:03:11]} Bc2 {[%emt 0:02:05]} 13.
Qc1 {[%emt 0:02:04]} Nb6 {[%emt 0:03:46]} 14. Bc3 {[%emt 0:09:25]} Bf5 {
[%emt 0:05:39]} 15. e4 {[%emt 0:02:24]} Bg6 {[%emt 0:00:29]} 16. Qd2 {[%emt 0:
00:00]} Na6 {[%emt 0:00:55]} 17. Rfd1 {[%emt 0:02:52]} Qc7 {[%emt 0:01:05]} 18.
h4 {[%emt 0:02:11]} Rad8 {[%emt 0:00:59]} 19. Qe2 {[%emt 0:00:18]} Nxc4 {
[%emt 0:02:19]} 20. bxc4 {[%emt 0:00:26]} f6 {[%emt 0:00:25]} 21. Nxg6 {
[%emt 0:00:24]} hxg6 {[%emt 0:00:08]} 22. Qg4 {[%emt 0:00:51]} Kf7 {[%emt 0:00:
00]} 23. d5 {[%emt 0:01:29]} Qc8 {[%emt 0:05:43]} 24. Bh3 {[%emt 0:01:50]} Nc5
{[%emt 0:04:11]} 25. h5 {[%emt 0:03:06]} g5 {[%emt 0:01:19]} 26. Bd4 {[%emt 0:
00:00]} f5 {[%emt 0:12:10]} 27. exf5 {[%emt 0:03:38]} exf5 {[%emt 0:00:35]} 28.
Qxf5+ {[%emt 0:02:50]} Qxf5 {[%emt 0:00:08]} 29. Bxf5 {[%emt 0:00:14]} cxd5 {
[%emt 0:00:03]} 30. Bxc5 {[%emt 0:03:19]} Bxc5 {[%emt 0:00:08]} 31. cxd5 {
[%emt 0:00:15]} Ke7 {[%emt 0:00:08]} 32. g4 {[%emt 0:00:43]} Kd6 {[%emt 0:00:
00]} 33. Rab1 {[%emt 0:00:51]} b6 {[%emt 0:00:09]} 34. a5 {[%emt 0:01:20]} Rde8
{[%emt 0:00:09]} 35. axb6 {[%emt 0:00:53]} axb6 {[%emt 0:00:14]} 36. Rd2 {
[%emt 0:00:49]} Re5 {[%emt 0:00:13]} 37. Be6 {[%emt 0:01:29]} Re4 {[%emt 0:00:
00]} 38. Kg2 {[%emt 0:02:27]} Rff4 {[%emt 0:00:57]} 39. Ra1 {[%emt 0:05:13]}
Ra4 {[%emt 0:00:16]} 40. Rxa4 {[%emt 0:02:35]} Rxa4 {[%emt 0:00:14]} 41. Rb2 {
[%emt 0:30:40]} Ra5 {[%emt 0:30:16]} 42. Kf3 {[%emt 0:00:18]} Ke5 {[%emt 0:00:
00]} 43. Re2+ {[%emt 0:01:28]} Kd4 {[%emt 0:00:40]} 44. Rd2+ {[%emt 0:00:22]}
Kc3 {[%emt 0:00:16]} 45. Ke2 {[%emt 0:00:07]} Bd6 {[%emt 0:00:19]} 46. Bf5 {
[%emt 0:00:28]} b5 {[%emt 0:00:27]} 47. f3 {[%emt 0:10:05]} b4 {[%emt 0:02:20]}
48. Rc2+ {[%emt 0:00:20]} Kd4 {[%emt 0:00:13]} 49. Be4 {[%emt 0:00:08]} Bc5 {
[%emt 0:02:54]} 50. Rd2+ {[%emt 0:00:40]} Ke5 {[%emt 0:00:06]} 51. Kd3 {
[%emt 0:00:30]} Ra3+ {[%emt 0:01:10]} 52. Kc4 {[%emt 0:02:55]} Kd6 {[%emt 0:00:
00]} 53. Rh2 {[%emt 0:01:02]} Rc3+ {[%emt 0:01:12]} 54. Kb5 {[%emt 0:00:40]} b3
{[%emt 0:02:28]} 55. h6 {[%emt 0:00:24]} gxh6 {[%emt 0:00:50]} 56. Rxh6+ {
[%emt 0:00:06]} Ke5 {[%emt 0:00:03]} 57. Re6+ {[%emt 0:02:07]} Kd4 {[%emt 0:00:
00]} 58. d6 {[%emt 0:01:44]} b2 {[%emt 0:00:09]} 59. d7 {[%emt 0:01:34]} Rb3+ {
[%emt 0:00:05]} 60. Ka6 {[%emt 0:00:54]} Ra3+ {[%emt 0:21:32]} 61. Kb7 {
[%emt 0:00:59]} b1=Q+ {[%emt 0:00:43]} 62. Bxb1 {[%emt 0:00:36]} Ra7+ {[%emt 0:
00:00]} 63. Kc8 {[%emt 0:03:38]} Ra8+ {[%emt 0:00:07]} 64. Kc7 {[%emt 0:00:41]}
Ra7+ {[%emt 0:00:05]} 65. Kc6 {[%emt 0:03:10]} Ra6+ {[%emt 0:00:17]} 66. Kb5 {
[%emt 0:00:08]} Rxe6 {[%emt 0:00:05]} 67. d8=Q+ {[%emt 0:00:18]} Bd6 {[%emt 0:
00:00]} 68. Qb6+ {[%emt 0:01:10]} Ke5 {[%emt 0:01:00]} 69. Bf5 {[%emt 0:00:10]}
Re7 {[%emt 0:00:41]} 70. Qe3+ {[%emt 0:02:01]} Kf6 {[%emt 0:00:16]} 71. Qd4+ {
[%emt 0:00:19]} Be5 {[%emt 0:02:56]} 72. Qb6+ {[%emt 0:00:11]} Kf7 {[%emt 0:00:
00]} 73. Qg6+ {[%emt 0:00:22]} Kf8 {[%emt 0:00:10]} 74. Qxg5 {[%emt 0:00:52]}
Bg7 {[%emt 0:00:06]} 75. Qg6 {[%emt 0:01:06]} Rf7 {[%emt 0:00:21]} 76. Qd6+ {
[%emt 0:00:56]} Re7 {[%emt 0:00:18]} 77. Bg6 {[%emt 0:00:22]} Be5 {[%emt 0:00:
00]} 78. Qd8+ {[%emt 0:00:13]} 1-0

[Event "44th Chess Olympiad Open 2022"]
[Site "Chennai"]
[Date "2022.07.31"]
[Round "3.52"]
[White "Castro Torres, Jose Luis"]
[Black "Fates, Omer Salah"]
[Result "1-0"]
[WhiteElo "2326"]
[BlackElo "1940"]
[Annotator "RC"]
[PlyCount "31"]
[EventDate "2022.??.??"]
[TimeControl "60"]

1. e4 {[%emt 0:00:09]} e6 {[%emt 0:00:20]} 2. d4 {[%emt 0:00:03]} d5 {[%emt 0:
00:00]} 3. Nd2 {[%emt 0:00:09]} Nf6 {[%emt 0:00:36]} 4. e5 {[%emt 0:00:45]}
Nfd7 {[%emt 0:00:10]} 5. Bd3 {[%emt 0:00:21]} Nc6 {[%emt 0:01:33]} 6. c3 {
[%emt 0:00:28]} Nb6 {[%emt 0:00:30]} 7. Qg4 {[%emt 0:09:01]} Bd7 {[%emt 0:00:
00]} 8. h4 {[%emt 0:11:29]} Qe7 {[%emt 0:02:22]} 9. h5 {[%emt 0:05:49]} h6 {
[%emt 0:01:19]} 10. Ne2 {[%emt 0:04:41]} O-O-O {[%emt 0:00:28]} 11. a4 {
[%emt 0:00:21]} a5 {[%emt 0:01:41]} 12. Nf3 {[%emt 0:07:43]} Qe8 {[%emt 0:00:
00]} 13. b3 {[%emt 0:03:21]} f6 {[%emt 0:04:06]} 14. Bg6 {[%emt 0:00:53]} Qe7 {
[%emt 0:00:15]} 15. Ba3 {[%emt 0:00:15]} Nxd4 {[%emt 0:01:17]} 16. cxd4 {
[%emt 0:01:05]} 1-0

[Event "44th Chess Olympiad Open 2022"]
[Site "Chennai"]
[Date "2022.07.31"]
[Round "3.52"]
[White "Castro Silva, Moises Antonio"]
[Black "Naser Eldean, Ahmed"]
[Result "1/2-1/2"]
[WhiteElo "2237"]
[BlackElo "1941"]
[Annotator "RC"]
[PlyCount "105"]
[EventDate "2022.??.??"]
[TimeControl "60"]

1. e4 {[%emt 0:00:06]} e6 {[%emt 0:00:21]} 2. d4 {[%emt 0:00:12]} d5 {[%emt 0:
00:00]} 3. Nd2 {[%emt 0:00:11]} Nc6 {[%emt 0:00:07]} 4. Ngf3 {[%emt 0:00:35]}
Nf6 {[%emt 0:00:11]} 5. e5 {[%emt 0:00:31]} Nd7 {[%emt 0:00:08]} 6. c3 {
[%emt 0:01:12]} f6 {[%emt 0:00:07]} 7. exf6 {[%emt 0:00:13]} Qxf6 {[%emt 0:00:
00]} 8. Nb3 {[%emt 0:11:35]} h6 {[%emt 0:01:16]} 9. Bd3 {[%emt 0:03:31]} e5 {
[%emt 0:01:03]} 10. dxe5 {[%emt 0:01:09]} Ndxe5 {[%emt 0:00:19]} 11. Nxe5 {
[%emt 0:00:16]} Nxe5 {[%emt 0:01:41]} 12. O-O {[%emt 0:00:28]} Bd6 {[%emt 0:00:
00]} 13. Be2 {[%emt 0:07:32]} Be6 {[%emt 0:12:40]} 14. Be3 {[%emt 0:18:44]} O-O
{[%emt 0:01:05]} 15. Nc5 {[%emt 0:07:20]} b6 {[%emt 0:06:57]} 16. Nxe6 {
[%emt 0:00:35]} Qxe6 {[%emt 0:00:08]} 17. Re1 {[%emt 0:18:46]} c6 {[%emt 0:00:
00]} 18. f4 {[%emt 0:02:51]} Nd7 {[%emt 0:21:12]} 19. Bg4 {[%emt 0:00:35]} Qf7
{[%emt 0:00:16]} 20. Bxb6 {[%emt 0:10:41]} Rae8 {[%emt 0:00:35]} 21. Rxe8 {
[%emt 0:02:42]} Rxe8 {[%emt 0:00:15]} 22. Bxa7 {[%emt 0:03:15]} Nc5 {[%emt 0:
00:00]} 23. Bxc5 {[%emt 0:06:21]} Bxc5+ {[%emt 0:00:10]} 24. Kh1 {[%emt 0:00:
00]} Qxf4 {[%emt 0:03:26]} 25. Bd7 {[%emt 0:02:27]} Bd6 {[%emt 0:00:09]} 26.
Qg1 {[%emt 0:00:04]} Re2 {[%emt 0:09:54]} 27. a4 {[%emt 0:01:22]} Qe4 {[%emt 0:
00:00]} 28. b4 {[%emt 0:00:37]} Bb8 {[%emt 0:00:16]} 29. Bh3 {[%emt 0:00:29]}
g5 {[%emt 0:02:30]} 30. Qb1 {[%emt 0:00:31]} g4 {[%emt 0:00:41]} 31. Qxe4 {
[%emt 0:00:21]} Rxe4 {[%emt 0:00:07]} 32. Bxg4 {[%emt 0:00:13]} Rxg4 {[%emt 0:
00:00]} 33. b5 {[%emt 0:00:37]} Rc4 {[%emt 0:03:07]} 34. b6 {[%emt 0:00:40]}
Rxc3 {[%emt 0:00:08]} 35. a5 {[%emt 0:00:12]} Rb3 {[%emt 0:00:20]} 36. Kg1 {
[%emt 0:00:56]} Be5 {[%emt 0:05:08]} 37. a6 {[%emt 0:00:30]} Bd4+ {[%emt 0:00:
00]} 38. Kf1 {[%emt 0:00:06]} Bxb6 {[%emt 0:00:31]} 39. a7 {[%emt 0:00:05]}
Bxa7 {[%emt 0:00:10]} 40. Rxa7 {[%emt 0:00:03]} Rc3 {[%emt 0:00:42]} 41. Rd7 {
[%emt 0:30:29]} Rc2 {[%emt 0:32:01]} 42. h3 {[%emt 0:00:00]} h5 {[%emt 0:00:00]
} 43. g3 {[%emt 0:00:00]} Rh2 {[%emt 0:00:00]} 44. Rd6 {[%emt 0:00:00]} Rc2 {
[%emt 0:00:00]} 45. Rh6 {[%emt 0:00:00]} d4 {[%emt 0:00:00]} 46. Rxh5 {[%emt 0:
00:00]} d3 {[%emt 0:00:00]} 47. Ke1 {[%emt 0:00:00]} c5 {[%emt 0:00:00]} 48. h4
{[%emt 0:00:00]} c4 {[%emt 0:00:00]} 49. Rc5 {[%emt 0:00:00]} c3 {[%emt 0:00:
00]} 50. Kd1 {[%emt 0:00:00]} Rd2+ {[%emt 0:00:12]} 51. Kc1 {[%emt 0:00:00]}
Rc2+ {[%emt 0:00:07]} 52. Kd1 {[%emt 0:00:00]} Kg7 {[%emt 0:01:58]} 53. h5 {
[%emt 0:00:00]} 1/2-1/2

[Event "44th Chess Olympiad Open 2022"]
[Site "Chennai"]
[Date "2022.07.31"]
[Round "3.52"]
[White "Alhassadi, Yousef A."]
[Black "Palomo, Franklin Annervys"]
[Result "0-1"]
[WhiteElo "2068"]
[BlackElo "2324"]
[Annotator "RC"]
[PlyCount "116"]
[EventDate "2022.??.??"]
[TimeControl "60"]

1. e4 {[%emt 0:00:03]} c5 {[%emt 0:00:17]} 2. c3 {[%emt 0:00:16]} d5 {[%emt 0:
00:00]} 3. exd5 {[%emt 0:01:15]} Qxd5 {[%emt 0:00:15]} 4. Nf3 {[%emt 0:00:04]}
Nf6 {[%emt 0:02:47]} 5. Na3 {[%emt 0:02:09]} e6 {[%emt 0:04:21]} 6. Nc2 {
[%emt 0:03:29]} Be7 {[%emt 0:02:22]} 7. d4 {[%emt 0:01:53]} cxd4 {[%emt 0:00:
00]} 8. Qxd4 {[%emt 0:07:00]} Nc6 {[%emt 0:05:40]} 9. Qxd5 {[%emt 0:04:05]}
Nxd5 {[%emt 0:00:05]} 10. Ncd4 {[%emt 0:06:32]} Nxd4 {[%emt 0:03:39]} 11. Nxd4
{[%emt 0:00:24]} Bd7 {[%emt 0:08:17]} 12. Bc4 {[%emt 0:03:51]} Nb6 {[%emt 0:00:
00]} 13. Bd3 {[%emt 0:00:30]} Na4 {[%emt 0:07:32]} 14. O-O {[%emt 0:07:02]} Nc5
{[%emt 0:06:35]} 15. Bc2 {[%emt 0:03:30]} O-O {[%emt 0:01:56]} 16. a4 {[%emt 0:
00:00]} Rac8 {[%emt 0:03:49]} 17. Rd1 {[%emt 0:07:29]} Rfd8 {[%emt 0:04:50]}
18. Be3 {[%emt 0:13:30]} Be8 {[%emt 0:03:49]} 19. Kf1 {[%emt 0:05:29]} g6 {
[%emt 0:02:18]} 20. Ke2 {[%emt 0:08:04]} e5 {[%emt 0:04:19]} 21. Nf3 {[%emt 0:
00:00]} f6 {[%emt 0:01:28]} 22. Rxd8 {[%emt 0:02:20]} Bxd8 {[%emt 0:00:12]} 23.
b4 {[%emt 0:00:49]} Ne6 {[%emt 0:03:23]} 24. Bb3 {[%emt 0:00:21]} Bf7 {[%emt 0:
00:00]} 25. Kd2 {[%emt 0:00:36]} a6 {[%emt 0:06:50]} 26. Bd5 {[%emt 0:01:48]}
Rc7 {[%emt 0:00:21]} 27. Rd1 {[%emt 0:04:10]} Be7 {[%emt 0:02:25]} 28. g3 {
[%emt 0:03:48]} Kg7 {[%emt 0:00:27]} 29. h4 {[%emt 0:02:07]} Nd4 {[%emt 0:00:
00]} 30. Bxf7 {[%emt 0:04:10]} Nxf3+ {[%emt 0:00:14]} 31. Ke2 {[%emt 0:00:03]}
Kxf7 {[%emt 0:00:16]} 32. Kxf3 {[%emt 0:00:06]} Ke6 {[%emt 0:00:19]} 33. Bd2 {
[%emt 0:01:13]} Kd5 {[%emt 0:02:28]} 34. Rb1 {[%emt 0:01:07]} Kc4 {[%emt 0:00:
00]} 35. Ke2 {[%emt 0:00:15]} Rd7 {[%emt 0:00:51]} 36. b5 {[%emt 0:00:33]} axb5
{[%emt 0:02:49]} 37. Rxb5 {[%emt 0:00:10]} Bc5 {[%emt 0:00:14]} 38. Rb2 {
[%emt 0:00:55]} b6 {[%emt 0:00:33]} 39. Be3 {[%emt 0:00:41]} Kxc3 {[%emt 0:00:
00]} 40. Rb5 {[%emt 0:00:28]} Kc4 {[%emt 0:00:39]} 41. Rb1 {[%emt 0:01:08]} Ra7
{[%emt 0:00:37]} 42. Rc1+ {[%emt 0:05:35]} Kd5 {[%emt 0:03:21]} 43. Ra1 {
[%emt 0:01:56]} f5 {[%emt 0:03:47]} 44. Rd1+ {[%emt 0:04:07]} Bd4 {[%emt 0:00:
00]} 45. Bxd4 {[%emt 0:04:36]} exd4 {[%emt 0:00:03]} 46. Rb1 {[%emt 0:02:56]}
Rxa4 {[%emt 0:00:43]} 47. Rxb6 {[%emt 0:00:11]} Ra2+ {[%emt 0:00:04]} 48. Kf3 {
[%emt 0:00:58]} Ra3+ {[%emt 0:01:22]} 49. Ke2 {[%emt 0:00:42]} Ra2+ {[%emt 0:
00:00]} 50. Kf3 {[%emt 0:00:07]} d3 {[%emt 0:00:00]} 51. Rb8 {[%emt 0:00:05]}
Kd4 {[%emt 0:00:42]} 52. Rb7 {[%emt 0:03:45]} Kc3 {[%emt 0:02:53]} 53. Rxh7 {
[%emt 0:02:51]} Ra6 {[%emt 0:00:09]} 54. Rd7 {[%emt 0:02:17]} d2 {[%emt 0:00:
00]} 55. Rc7+ {[%emt 0:00:19]} Kd3 {[%emt 0:00:07]} 56. Rd7+ {[%emt 0:00:26]}
Kc2 {[%emt 0:00:02]} 57. Rc7+ {[%emt 0:01:36]} Kd1 {[%emt 0:00:18]} 58. Rd7 {
[%emt 0:00:43]} Re6 {[%emt 0:00:36]} 0-1

[Event "44th Chess Olympiad Open 2022"]
[Site "Chennai"]
[Date "2022.07.31"]
[Round "3.52"]
[White "Abugenda, Nagi"]
[Black "Escalona Landi, Samid Eduardo"]
[Result "1/2-1/2"]
[WhiteElo "1991"]
[BlackElo "2191"]
[Annotator "RC"]
[PlyCount "80"]
[EventDate "2022.??.??"]
[TimeControl "60"]

1. e4 {[%emt 0:00:04]} c5 {[%emt 0:00:05]} 2. Nf3 {[%emt 0:00:31]} Nc6 {
[%emt 0:00:06]} 3. d4 {[%emt 0:00:15]} cxd4 {[%emt 0:00:05]} 4. Nxd4 {[%emt 0:
00:00]} Qb6 {[%emt 0:00:05]} 5. Nb3 {[%emt 0:00:48]} Nf6 {[%emt 0:00:10]} 6.
Nc3 {[%emt 0:00:13]} e6 {[%emt 0:00:05]} 7. Be3 {[%emt 0:00:45]} Qc7 {[%emt 0:
00:00]} 8. a3 {[%emt 0:00:13]} a6 {[%emt 0:00:05]} 9. Be2 {[%emt 0:02:18]} Be7
{[%emt 0:00:08]} 10. O-O {[%emt 0:00:17]} O-O {[%emt 0:00:06]} 11. f4 {[%emt 0:
00:00]} d6 {[%emt 0:00:05]} 12. Bf3 {[%emt 0:03:36]} b5 {[%emt 0:00:10]} 13.
Qe2 {[%emt 0:02:35]} Bb7 {[%emt 0:00:09]} 14. Qf2 {[%emt 0:02:20]} Rac8 {
[%emt 0:00:14]} 15. Rad1 {[%emt 0:08:33]} b4 {[%emt 0:00:57]} 16. Bb6 {[%emt 0:
00:00]} Qb8 {[%emt 0:00:11]} 17. axb4 {[%emt 0:04:16]} Nxb4 {[%emt 0:00:10]}
18. Bd4 {[%emt 0:08:38]} d5 {[%emt 0:10:31]} 19. exd5 {[%emt 0:09:00]} Nbxd5 {
[%emt 0:03:12]} 20. Be5 {[%emt 0:08:35]} Qa8 {[%emt 0:04:23]} 21. Na5 {[%emt 0:
00:00]} Bc5 {[%emt 0:07:57]} 22. Bd4 {[%emt 0:01:06]} Nxc3 {[%emt 0:01:18]} 23.
bxc3 {[%emt 0:16:25]} Bxf3 {[%emt 0:01:09]} 24. Qxf3 {[%emt 0:00:41]} Qe4 {
[%emt 0:04:24]} 25. Nb3 {[%emt 0:03:46]} Bxd4+ {[%emt 0:02:52]} 26. Nxd4 {
[%emt 0:00:23]} Rc4 {[%emt 0:08:14]} 27. Ra1 {[%emt 0:01:45]} Rfc8 {[%emt 0:00:
00]} 28. Rxa6 {[%emt 0:01:47]} Rxc3 {[%emt 0:00:23]} 29. Qxe4 {[%emt 0:01:23]}
Nxe4 {[%emt 0:00:05]} 30. Ra7 {[%emt 0:01:17]} R3c4 {[%emt 0:00:53]} 31. Rd1 {
[%emt 0:03:55]} g5 {[%emt 0:12:44]} 32. Nxe6 {[%emt 0:06:51]} fxe6 {[%emt 0:00:
00]} 33. Rdd7 {[%emt 0:00:42]} Nf6 {[%emt 0:10:11]} 34. Rg7+ {[%emt 0:01:24]}
Kh8 {[%emt 0:00:08]} 35. fxg5 {[%emt 0:00:40]} Ne8 {[%emt 0:00:07]} 36. Rxh7+ {
[%emt 0:01:01]} Kg8 {[%emt 0:00:05]} 37. Rhe7 {[%emt 0:02:21]} Nc7 {[%emt 0:00:
00]} 38. h4 {[%emt 0:01:30]} Rxc2 {[%emt 0:03:40]} 39. h5 {[%emt 0:00:49]} Rc5
{[%emt 0:01:36]} 40. g6 {[%emt 0:01:31]} Rxh5 {[%emt 0:00:29]} 1/2-1/2

[Event "44th Chess Olympiad Open 2022"]
[Site "Chennai"]
[Date "2022.07.31"]
[Round "3.53"]
[White "Ortega Amarelle, Mariano"]
[Black "Munoz Santana, Jose Lisandro"]
[Result "1/2-1/2"]
[WhiteElo "2463"]
[BlackElo "2423"]
[Annotator "RC"]
[PlyCount "44"]
[EventDate "2022.??.??"]
[TimeControl "60"]

1. d4 {[%emt 0:00:03]} d5 {[%emt 0:00:06]} 2. c4 {[%emt 0:00:36]} c6 {[%emt 0:
00:00]} 3. Nf3 {[%emt 0:00:57]} Nf6 {[%emt 0:00:05]} 4. Nc3 {[%emt 0:05:15]}
dxc4 {[%emt 0:00:09]} 5. a4 {[%emt 0:00:05]} e6 {[%emt 0:00:11]} 6. e3 {
[%emt 0:00:22]} c5 {[%emt 0:00:06]} 7. Bxc4 {[%emt 0:00:14]} Nc6 {[%emt 0:00:
00]} 8. O-O {[%emt 0:00:07]} cxd4 {[%emt 0:00:11]} 9. exd4 {[%emt 0:00:05]} Be7
{[%emt 0:00:05]} 10. Qe2 {[%emt 0:13:22]} O-O {[%emt 0:03:09]} 11. Rd1 {
[%emt 0:03:18]} Nb4 {[%emt 0:01:03]} 12. Ne5 {[%emt 0:00:08]} Nfd5 {[%emt 0:00:
00]} 13. Bd2 {[%emt 0:27:47]} Bd7 {[%emt 0:27:33]} 14. Qg4 {[%emt 0:12:52]} Nf6
{[%emt 0:08:06]} 15. Qg3 {[%emt 0:07:25]} Bc6 {[%emt 0:11:29]} 16. Bh6 {
[%emt 0:06:21]} Ne8 {[%emt 0:00:16]} 17. Rac1 {[%emt 0:08:09]} Rc8 {[%emt 0:00:
00]} 18. Bf4 {[%emt 0:04:23]} Nf6 {[%emt 0:11:07]} 19. Bh6 {[%emt 0:05:23]} Ne8
{[%emt 0:00:12]} 20. Bf4 {[%emt 0:01:51]} Nf6 {[%emt 0:04:44]} 21. Bh6 {
[%emt 0:00:19]} Ne8 {[%emt 0:00:05]} 22. Bf4 {[%emt 0:01:27]} Nf6 {[%emt 0:00:
00]} 1/2-1/2

[Event "44th Chess Olympiad Open 2022"]
[Site "Chennai"]
[Date "2022.07.31"]
[Round "3.53"]
[White "Guzman, Christopher"]
[Black "Fortes, Aires"]
[Result "1-0"]
[WhiteElo "2243"]
[BlackElo "1508"]
[Annotator "RC"]
[PlyCount "43"]
[EventDate "2022.??.??"]
[TimeControl "60"]

1. e4 {[%emt 0:00:04]} e5 {[%emt 0:00:09]} 2. Nf3 {[%emt 0:00:07]} Nf6 {
[%emt 0:00:22]} 3. Nc3 {[%emt 0:00:30]} Nc6 {[%emt 0:00:13]} 4. d4 {[%emt 0:00:
00]} exd4 {[%emt 0:04:36]} 5. Nxd4 {[%emt 0:00:03]} Bb4 {[%emt 0:00:33]} 6.
Nxc6 {[%emt 0:00:18]} bxc6 {[%emt 0:00:30]} 7. Bd3 {[%emt 0:00:10]} O-O {
[%emt 0:01:04]} 8. O-O {[%emt 0:00:07]} d6 {[%emt 0:02:00]} 9. Na4 {[%emt 0:00:
00]} d5 {[%emt 0:07:36]} 10. e5 {[%emt 0:01:58]} Ng4 {[%emt 0:13:38]} 11. f4 {
[%emt 0:03:43]} Qh4 {[%emt 0:05:49]} 12. h3 {[%emt 0:00:13]} f5 {[%emt 0:00:31]
} 13. c3 {[%emt 0:04:17]} Ba5 {[%emt 0:03:39]} 14. Qf3 {[%emt 0:08:40]} Nxe5 {
[%emt 0:05:32]} 15. fxe5 {[%emt 0:02:21]} Qxa4 {[%emt 0:00:21]} 16. Qg3 {
[%emt 0:00:23]} c5 {[%emt 0:13:56]} 17. Bh6 {[%emt 0:01:07]} Rf7 {[%emt 0:00:
00]} 18. Bxf5 {[%emt 0:03:35]} Bxf5 {[%emt 0:02:12]} 19. Rxf5 {[%emt 0:00:03]}
Qd7 {[%emt 0:05:37]} 20. Raf1 {[%emt 0:00:49]} Raf8 {[%emt 0:01:00]} 21. Qxg7+
{[%emt 0:01:51]} Rxg7 {[%emt 0:00:14]} 22. Rxf8# {[%emt 0:00:04]} 1-0

[Event "44th Chess Olympiad Open 2022"]
[Site "Chennai"]
[Date "2022.07.31"]
[Round "3.53"]
[White "Camacho Campusano, David Daniel"]
[Black "Mirulla, David"]
[Result "1-0"]
[WhiteElo "2221"]
[BlackElo "1953"]
[Annotator "RC"]
[PlyCount "95"]
[EventDate "2022.??.??"]
[TimeControl "60"]

1. e4 {[%emt 0:00:13]} e5 {[%emt 0:01:10]} 2. Nf3 {[%emt 0:00:18]} Nc6 {
[%emt 0:00:09]} 3. Bb5 {[%emt 0:01:24]} a6 {[%emt 0:00:26]} 4. Ba4 {[%emt 0:00:
00]} Nf6 {[%emt 0:00:19]} 5. Bxc6 {[%emt 0:00:53]} dxc6 {[%emt 0:00:20]} 6. d3
{[%emt 0:00:10]} Bg4 {[%emt 0:02:03]} 7. h3 {[%emt 0:00:43]} Bxf3 {[%emt 0:00:
00]} 8. Qxf3 {[%emt 0:00:11]} Nd7 {[%emt 0:10:13]} 9. Nd2 {[%emt 0:01:18]} g6 {
[%emt 0:04:50]} 10. Nc4 {[%emt 0:04:25]} Bg7 {[%emt 0:02:46]} 11. Bd2 {[%emt 0:
00:00]} Qe7 {[%emt 0:02:03]} 12. O-O {[%emt 0:06:57]} c5 {[%emt 0:05:58]} 13.
a4 {[%emt 0:04:15]} O-O {[%emt 0:01:39]} 14. Ne3 {[%emt 0:01:53]} Rad8 {
[%emt 0:03:51]} 15. Nd5 {[%emt 0:02:13]} Qd6 {[%emt 0:00:36]} 16. a5 {[%emt 0:
00:00]} f5 {[%emt 0:08:52]} 17. exf5 {[%emt 0:17:31]} Rxf5 {[%emt 0:03:05]} 18.
Qe4 {[%emt 0:00:33]} c6 {[%emt 0:03:37]} 19. Ne3 {[%emt 0:04:36]} Rf4 {[%emt 0:
00:00]} 20. Nc4 {[%emt 0:01:33]} Rxe4 {[%emt 0:00:23]} 21. Nxd6 {[%emt 0:00:09]
} Rd4 {[%emt 0:00:10]} 22. Ne4 {[%emt 0:04:11]} Rd5 {[%emt 0:18:45]} 23. Be3 {
[%emt 0:02:55]} Nf6 {[%emt 0:11:32]} 24. Nxc5 {[%emt 0:03:12]} Bf8 {[%emt 0:00:
00]} 25. Ne6 {[%emt 0:13:30]} R8d7 {[%emt 0:00:55]} 26. Nxf8 {[%emt 0:01:35]}
Kxf8 {[%emt 0:00:02]} 27. Rfe1 {[%emt 0:00:38]} Rb5 {[%emt 0:02:23]} 28. b4 {
[%emt 0:01:12]} Rbd5 {[%emt 0:02:21]} 29. Bc5+ {[%emt 0:01:10]} Kg7 {[%emt 0:
00:00]} 30. Re3 {[%emt 0:00:31]} Rf7 {[%emt 0:00:00]} 31. Rae1 {[%emt 0:00:36]}
Nd7 {[%emt 0:01:21]} 32. c4 {[%emt 0:03:02]} Rxc5 {[%emt 0:00:14]} 33. bxc5 {
[%emt 0:00:02]} Nxc5 {[%emt 0:01:31]} 34. Rd1 {[%emt 0:01:16]} Kf6 {[%emt 0:00:
00]} 35. d4 {[%emt 0:01:45]} exd4 {[%emt 0:00:26]} 36. Rxd4 {[%emt 0:00:28]}
Kg7 {[%emt 0:01:17]} 37. Re5 {[%emt 0:03:33]} Nd7 {[%emt 0:00:51]} 38. Re3 {
[%emt 0:03:18]} Nc5 {[%emt 0:00:15]} 39. Kf1 {[%emt 0:00:23]} h6 {[%emt 0:00:
00]} 40. Ke2 {[%emt 0:00:21]} Nd7 {[%emt 0:00:26]} 41. f3 {[%emt 0:30:47]} h5 {
[%emt 0:31:45]} 42. Kd2 {[%emt 0:01:09]} Nc5 {[%emt 0:00:00]} 43. Kc3 {[%emt 0:
00:00]} Nd7 {[%emt 0:00:00]} 44. Rde4 {[%emt 0:00:00]} Nc5 {[%emt 0:00:00]} 45.
Re7 {[%emt 0:00:00]} Nd7 {[%emt 0:00:00]} 46. Rxf7+ {[%emt 0:00:00]} Kxf7 {
[%emt 0:00:00]} 47. Kd4 {[%emt 0:00:00]} Kf8 {[%emt 0:00:00]} 48. Rb3 {[%emt 0:
00:00]} 1-0